[Event "44th Chess Olympiad Women 2022"]
[Site "Chennai"]
[Date "2022.08.05"]
[Round "7.31"]
[White "Ogbiyoyo, Perpetual Eloho"]
[Black "Tuominen, Tanja"]
[Result "1-0"]
[ECO "B21"]
[WhiteElo "1886"]
[BlackElo "2080"]
[Annotator "TA"]
[PlyCount "91"]
[EventDate "2022.07.29"]
[EventType "team-tourn"]
[EventCountry "IND"]
[SourceTitle "playchess.com"]
[Source "ChessBase"]
[SourceQuality "1"]
[WhiteTeam "Nigeria"]
[BlackTeam "Finland"]
[WhiteTeamCountry "NGR"]
[BlackTeamCountry "FIN"]
[TimeControl "40/5400+30:1800+30"]

{[%evp 9,91,-16,18,7,54,21,50,61,68,33,63,26,28,31,37,40,34,0,65,14,0,0,81,-14,-16,-11,27,-10,0,-7,0,0,106,106,107,107,108,77,108,71,109,94,108,37,93,36,41,27,27,35,33,36,51,52,121,115,109,125,422,416,513,510,450,372,489,487,595,586,571,481,641,612,627,618,736,651,629,577,498,504,2062,2058,2058,1261]} 1. e4 {[%emt 0:00:16]} c5 {[%emt 0:00:04]} 2. f4 {[%emt 0:00:21]} d5 {[%emt 0:00:15]} 3. Bb5+ {[%emt 0:00:16]} Nc6 {[%emt 0:08:24]} 4. Bxc6+ {[%emt 0:00:57]} bxc6 {[%emt 0:00:03]} 5. d3 {[%emt 0:00:42]} g6 {[%emt 0:03:00]} 6. Nf3 {[%emt 0:01:07] B21: Sicilian: 2 f4 and Morra Gambit.} Bg7 {[%emt 0:00:36]} (6... dxe4 $11 7. dxe4 Qxd1+ 8. Kxd1 Bg7) 7. Nc3 {[%emt 0:02:00]} Ba6 {[%emt 0:03:43]} 8. e5 {[%emt 0:03:45] [#] White is slightly better.} c4 $146 {[%emt 0:11:23]} ({Predecessor:} 8... Nh6 9. O-O e6 10. Kh1 Qe7 11. Qe1 O-O 12. b3 c4 13. bxc4 dxc4 14. d4 Rfd8 {½-½ (38) Soto,J (1755)-Moldovan,A (1685) Villa Martelli 2018}) 9. d4 {[%emt 0:02:20]} h5 {[%emt 0:05:47]} 10. Be3 {[%emt 0:04:46][%cal Oe5e6]} (10. e6 $5 {[%cal Re6f7]}) 10... Nh6 {[%emt 0:00:56]} 11. h3 {[%emt 0:00:20]} Nf5 {[%emt 0:00:41]} 12. Bf2 {[%emt 0:00:37]} h4 {[%emt 0:01:49]} 13. Qd2 {[%emt 0:03:55]} Rb8 {[%emt 0:14:02]} (13... Qa5 $11) 14. Rb1 {[%emt 0:01:32]} (14. Na4 $1 $14) 14... Qa5 {[%emt 0:06:30]} 15. O-O {[%emt 0:02:12]} Bc8 {[%emt 0:01:14]} (15... e6 $1 $11 {keeps the balance.}) 16. Ne2 {[%emt 0:05:36]} (16. b3 $16) 16... Qxd2 $11 {[%emt 0:01:08]} 17. Nxd2 {[%emt 0:00:21]} f6 {[%emt 0:01:24]} 18. Nf3 {[%emt 0:02:23]} (18. b3 $5 {[%cal Rb3c4]}) 18... Kf7 {[%emt 0:02:34]} 19. Rfe1 {[%emt 0:01:41]} Be6 {[%emt 0:02:03]} 20. b3 {[%emt 0:00:56]} cxb3 {[%emt 0:03:46]} (20... Bd7 $11) 21. axb3 $16 {[%emt 0:00:45]} Bc8 {[%emt 0:02:22]} 22. Ra1 {[%emt 0:00:30]} a6 {[%emt 0:00:07]} 23. Ra2 {[%emt 0:01:46]} Rh5 {[%emt 0:00:46]} 24. Rea1 {[%emt 0:02:04]} g5 {[%emt 0:00:54]} 25. fxg5 {[%emt 0:01:51]} fxg5 {[%emt 0:00:09]} 26. Ne1 {[%emt 0:00:36]} ({White should play} 26. Ra4 $16) 26... c5 {[%emt 0:03:14]} (26... Rh6 $14) 27. Nd3 {[%emt 0:03:52]} (27. dxc5 $16 {aiming for Nd3.} Bxe5 28. Rd1) 27... cxd4 {[%emt 0:02:06]} 28. Nxd4 {[%emt 0:00:52]} Nxd4 {[%emt 0:04:15]} 29. Bxd4 {[%emt 0:00:10]} Rh6 {[%emt 0:02:25]} 30. Nc5 {[%emt 0:00:49][%cal Rc5a6]} Rc6 {[%emt 0:01:03]} 31. c3 {[%emt 0:04:07]} Rxc5 {[%emt 0:13:12]} 32. Bxc5 {[%emt 0:00:23]} Bxe5 {[%emt 0:00:11]} 33. Rf1+ {[%emt 0:02:11]} Ke8 $2 {[%emt 0:02:21][%mdl 8192] This move loses the game for Black.} (33... Kg6 $16) 34. Re2 $18 {[%emt 0:00:49]} Bf4 {[%emt 0:01:02]} 35. Rxe7+ {[%emt 0:00:28]} Kd8 {[%emt 0:00:03]} 36. b4 {[%emt 0:01:53]} Rb5 {[%emt 0:01:32][%cal Ob5c5] [#] Threatens to win with ...Rxc5!} 37. Rfe1 {[%emt 0:01:47] White is clearly winning.} Bd7 {[%emt 0:03:05]} 38. Rg7 {[%emt 0:00:27]} Rb7 {[%emt 0:00:21]} 39. Rd1 {[%emt 0:00:38]} Be5 {[%emt 0:00:35]} 40. Rxg5 {[%emt 0:02:44]} Bxc3 {[%emt 0:00:17]} 41. Rgxd5 {[%emt 0:30:51]} Ke8 {[%emt 0:07:42]} 42. Rf1 {[%emt 0:00:00][%csl Gc5][%cal Rf1f8] [#]} Kd8 {[%emt 0:06:39]} 43. Rd6 {[%emt 0:00:00]} a5 {[%emt 0:05:25]} 44. Rb6 {[%emt 0:00:00]} Rc7 {[%emt 0:05:01]} (44... Kc8 $142 45. bxa5 Bxa5 46. Rf8+ Kc7) 45. Rf8+ {[%emt 0:00:00]} Be8 {[%emt 0:00:09]} 46. Rb8+ {[%emt 0:00:00] Weighted Error Value: White=0.26 (precise) /Black=0.52} 1-0

[Event "44th Chess Olympiad Women 2022"]
[Site "Chennai"]
[Date "2022.08.05"]
[Round "7.32"]
[White "Varela La Madrid, Tilsia Carolina"]
[Black "Granados Diaz, Maria Esther"]
[Result "1-0"]
[ECO "B03"]
[WhiteElo "2079"]
[BlackElo "1888"]
[Annotator "TA"]
[PlyCount "83"]
[EventDate "2022.07.29"]
[EventType "team-tourn"]
[EventCountry "IND"]
[SourceTitle "playchess.com"]
[Source "ChessBase"]
[SourceQuality "1"]
[WhiteTeam "Venezuela"]
[BlackTeam "Nicaragua"]
[WhiteTeamCountry "VEN"]
[BlackTeamCountry "NCA"]
[TimeControl "40/5400+30:1800+30"]

{[%evp 14,83,29,0,23,29,129,122,115,112,114,123,127,104,210,201,301,263,251,247,350,331,460,455,475,498,478,484,460,457,487,285,287,290,292,284,372,199,226,185,187,49,59,37,39,44,57,42,53,38,40,22,77,62,276,277,277,264,313,258,664,624,1890,1730,29979,6835,29991,29992,29992,29992,29994,29995]} 1. e4 {[%emt 0:00:08][%cal Be2e4,Be4e5][%mdl 32]} Nf6 {[%emt 0:00:23]} 2. e5 {[%emt 0:00:14]} Nd5 {[%emt 0:00:04]} 3. c4 {[%emt 0:00:16]} Nb6 {[%emt 0:00:04]} 4. d4 {[%emt 0:00:06]} d6 {[%emt 0:00:06]} 5. f4 {[%emt 0:00:23]} dxe5 {[%emt 0:00:11]} 6. fxe5 {[%emt 0:00:06]} Nc6 {[%emt 0:00:40]} 7. Be3 {[%emt 0:01:10]} Bf5 {[%emt 0:00:29]} 8. Nf3 {[%emt 0:00:51]} e6 {[%emt 0:00:11] B03: Alekhine's Defence: Four Pawns Attack.} (8... Nb4 $5 {[%cal Rb4c2]}) 9. Be2 {[%emt 0:01:06]} Bxb1 {[%emt 0:16:34]} (9... Nb4 $11 {keeps the balance.}) 10. Rxb1 {[%emt 0:01:29]} Bb4+ {[%emt 0:00:07] White is better.} 11. Kf2 {[%emt 0:01:14]} O-O {[%emt 0:00:17]} 12. c5 {[%emt 0:02:18]} Nd5 {[%emt 0:01:47]} 13. a3 {[%emt 0:00:59] [#]} Ba5 $146 {[%emt 0:02:25]} (13... f6 $16 {is a better defense.}) ({Predecessor:} 13... Bxa3 14. bxa3 Nc3 15. Qc2 Nxb1 16. Rxb1 Rb8 17. Kg1 h6 18. Bc4 Ne7 19. Qe4 c6 20. Nh4 {1-0 (20) Perez Candelario,M (2070)-Garcia,B (1800) Spain 1997}) 14. b4 $18 {[%emt 0:03:34]} Nc3 {[%emt 0:00:30]} (14... f6 $142) 15. Qc2 {[%emt 0:00:31]} Nxb1 {[%emt 0:00:37]} 16. Rxb1 {[%emt 0:00:22]} f6 {[%emt 0:05:52]} (16... Bxb4 $142 17. axb4 h6) 17. Kg1 {[%emt 0:05:08]} (17. bxa5 fxe5 18. dxe5 Nxe5) 17... f5 {[%emt 0:08:00]} 18. Bc4 {[%emt 0:01:29]} (18. bxa5 Nxa5 19. Ng5 Qd7 $18) 18... Qd7 {[%emt 0:12:09]} 19. Qb3 {[%emt 0:01:52]} (19. bxa5 Nxa5 20. Ba2 b5 $18) 19... Rae8 {[%emt 0:00:55]} 20. Bxe6+ {[%emt 0:03:49][%mdl 64] [#] Remove Defender, Decoy} (20. bxa5 Nxa5 21. Qb5 Qxb5 22. Bxb5 Nc6 $18) 20... Qxe6 {[%emt 0:06:24]} 21. d5 {[%emt 0:01:27]} Qf7 {[%emt 0:06:28][%cal Oc6e5]} 22. dxc6 {[%emt 0:19:22]} (22. Ng5 $142 Qg6 23. dxc6+ Kh8 24. cxb7) 22... Qxb3 {[%emt 0:06:20]} 23. Rxb3 {[%emt 0:00:05]} bxc6 {[%emt 0:01:13]} 24. bxa5 {[%emt 0:00:13]} Rb8 {[%emt 0:00:06]} 25. Rd3 {[%emt 0:00:20]} (25. Rxb8 $142 Rxb8 26. Nd4) 25... Rfd8 {[%emt 0:00:30]} 26. Rxd8+ {[%emt 0:02:08]} Rxd8 {[%emt 0:00:06]} 27. Nd4 {[%emt 0:00:07]} ({Better is} 27. e6 $18) 27... f4 $1 $14 {[%emt 0:01:18]} 28. Bf2 {[%emt 0:00:04] Kf1 is the strong threat.} (28. Nxc6 Rd1+ 29. Kf2 fxe3+ 30. Kxe3 Ra1 $17) 28... Rd5 $1 {[%emt 0:00:56][%csl LRc5,LRe5]} 29. Nf3 {[%emt 0:04:36]} Rd1+ {[%emt 0:02:22]} 30. Be1 $1 {[%emt 0:00:11]} Rc1 {[%emt 0:01:33]} 31. Kf1 {[%emt 0:01:12]} Rxc5 {[%emt 0:00:30]} 32. Ke2 {[%emt 0:02:09] next Kd3 is good for White.} Rc2+ {[%emt 0:00:52]} (32... g5 $11) 33. Bd2 $16 {[%emt 0:00:28] And now e6 would win.} c5 $2 {[%emt 0:00:27] This move loses the game for Black.} (33... Ra2 $14) 34. Kd3 $18 {[%emt 0:00:06][%csl LRc2,LRf4]} Ra2 {[%emt 0:00:15]} 35. Kc4 {[%emt 0:00:25]} (35. Bxf4 Rxa3+ 36. Ke4 Ra4+ 37. Ke3 h6 $11) 35... Rxa3 {[%emt 0:02:57]} 36. Kxc5 {[%emt 0:00:19] Black must now prevent Kc6.} Ra2 $2 {[%emt 0:00:34]} (36... Kf8 37. Kc6 (37. Bxf4 Rxa5+ 38. Kc6 Ra4 $16) 37... Ke8) 37. Kc6 {[%emt 0:00:29] Threatens to win with e6.} g5 {[%emt 0:02:16]} 38. e6 {[%emt 0:00:55][%cal Be5e6,Be6e7][%mdl 32] e7 would kill now.} Ra3 {[%emt 0:16:44]} 39. Ne5 {[%emt 0:02:59]} (39. Nxg5 $142 Rb3 40. e7 Rb8 41. Kxc7 Ra8 42. Kd7 Rb8 43. Bxf4 Rf8 44. exf8=Q+ Kxf8 45. Nxh7+ Kg7 {[#]} 46. Ke7 $1) 39... Ra2 {[%emt 0:04:42]} 40. e7 {[%emt 0:00:31] White mates.} Rc2+ {[%emt 0:00:15]} 41. Kb7 {[%emt 0:30:13]} Rb2+ {[%emt 0:30:59]} 42. Kxa7 {[%emt 0:00:18] Weighted Error Value: White=0.30/Black=0.84} 1-0

[Event "44th Chess Olympiad Women 2022"]
[Site "Chennai"]
[Date "2022.08.05"]
[Round "7.32"]
[White "Rovira Contreras, Tairu Manuela"]
[Black "Alvarez Gutierrez, Patricia"]
[Result "1-0"]
[ECO "D15"]
[WhiteElo "2036"]
[BlackElo "1715"]
[Annotator "TA"]
[PlyCount "67"]
[EventDate "2022.07.29"]
[EventType "team-tourn"]
[EventCountry "IND"]
[SourceTitle "playchess.com"]
[Source "ChessBase"]
[SourceQuality "1"]
[WhiteTeam "Venezuela"]
[BlackTeam "Nicaragua"]
[WhiteTeamCountry "VEN"]
[BlackTeamCountry "NCA"]
[TimeControl "40/5400+30:1800+30"]

{[%evp 9,66,17,17,7,18,13,41,40,50,47,46,39,45,33,35,0,29,0,0,-66,-62,-91,-31,-26,23,0,61,66,60,50,77,72,101,85,105,100,141,145,138,105,108,122,110,101,424,359,343,197,662,227,2172,2145,29989,29989,29989,29990,29991,29992,29999]} 1. d4 {[%emt 0:00:07]} d5 {[%emt 0:00:11]} 2. c4 {[%emt 0:00:34]} c6 {[%emt 0:00:08]} 3. Nf3 {[%emt 0:00:10]} Nf6 {[%emt 0:00:17]} 4. Nc3 {[%emt 0:00:33]} a6 {[%emt 0:01:07]} 5. b3 {[%emt 0:05:13]} Bf5 {[%emt 0:02:00]} 6. Nh4 {[%emt 0:01:38] [#] D15: Slav Defence: 4 Nc3 a6 and gambit lines after 4 Nc3 dxc4.} Bg4 $146 {[%emt 0:01:33][%cal Oe7e5]} ({Predecessor:} 6... e6 7. Nxf5 exf5 8. Bb2 Nbd7 9. g3 Bb4 10. a3 Bxc3+ 11. Bxc3 Ne4 12. Qc2 Nxc3 13. Qxc3 {½-½ (50) Beliavsky,A (2667)-Schandorff,L (2520) Germany 2004}) 7. h3 {[%emt 0:01:02]} Bh5 {[%emt 0:00:07]} (7... Bc8 $5 {[%cal Re7e5]}) 8. g4 {[%emt 0:01:18][%cal Bg2g4,Bg4g5][%mdl 32] White is slightly better.} Bg6 {[%emt 0:00:15]} 9. Nxg6 {[%emt 0:04:05]} hxg6 {[%emt 0:00:07]} 10. g5 {[%emt 0:00:43]} Ng8 {[%emt 0:08:55]} 11. Bg2 {[%emt 0:08:21][%cal Rc4d5]} e6 $1 {[%emt 0:01:17]} 12. Qd3 {[%emt 0:04:23]} Bb4 {[%emt 0:02:30]} 13. Kf1 {[%emt 0:06:05]} Ne7 {[%emt 0:01:25]} 14. c5 {[%emt 0:06:10]} (14. h4 $11) 14... Nf5 $15 {[%emt 0:02:20]} 15. Bf4 {[%emt 0:05:45][%cal Oh3h4]} Bxc3 {[%emt 0:09:23]} (15... Nd7 $17 {[%cal Oe6e5] Hoping for ...e5!} 16. h4 e5 17. Bxe5 Nxe5 18. dxe5 Rxh4) 16. Qxc3 {[%emt 0:01:04][%cal Oh3h4]} Nh4 {[%emt 0:01:02]} (16... Rh4 $142 17. e3 Nd7) 17. Bf3 {[%emt 0:04:06]} Nxf3 {[%emt 0:01:12]} (17... Nd7 $11) 18. Qxf3 {[%emt 0:00:07]} Nd7 {[%emt 0:02:55]} 19. Qg3 {[%emt 0:01:29]} Rc8 {[%emt 0:08:36]} 20. Kg2 {[%emt 0:02:41]} Qa5 {[%emt 0:05:06]} 21. a3 {[%emt 0:11:15][%cal Ba2a3,Ba3a4][%mdl 32]} Qb5 {[%emt 0:06:26]} 22. Rhe1 {[%emt 0:02:15]} O-O {[%emt 0:14:19]} 23. Qc3 {[%emt 0:09:15] [#] aiming for a4.} a5 {[%emt 0:04:05]} 24. a4 {[%emt 0:04:14]} Qa6 {[%emt 0:00:41]} 25. Bd6 $36 {[%emt 0:00:23][%mdl 2048] White is in control.} Rfe8 {[%emt 0:00:45]} 26. h4 {[%emt 0:00:45][%cal Bh3h4,Bh4h5][%mdl 32] Black must now prevent Qh3. White is more active.} f6 $2 {[%emt 0:05:40][%mdl 8192] Black cannot hold the game after this.} (26... b6 $16 {is a better chance.}) 27. Qh3 $18 {[%emt 0:05:09] [#] Threatens to win with h5.} Kf7 {[%emt 0:01:26]} 28. e4 {[%emt 0:00:55]} (28. h5 $142 fxg5 29. h6) 28... f5 $2 {[%emt 0:12:36]} (28... dxe4 29. Rxe4 f5) 29. exd5 $2 {[%emt 0:03:07]} (29. exf5 gxf5 30. h5) 29... exd5 {[%emt 0:00:53]} (29... cxd5 30. h5 e5 31. dxe5 Ke6) 30. h5 {[%emt 0:01:46][%cal Od6e7] Be7! would kill now.} Re4 {[%emt 0:01:53] Against Be7} 31. Rxe4 {[%emt 0:07:40] White mates.} dxe4 {[%emt 0:00:41]} 32. hxg6+ {[%emt 0:01:48]} ({Not} 32. Rh1 Qe2 $18) 32... Kxg6 {[%emt 0:01:07]} 33. Rh1 {[%emt 0:00:32][%csl Gh1][%cal Rh3h5]} Nf8 {[%emt 0:05:14]} 34. Qh5# {[%emt 0:00:10] Weighted Error Value: White=0.31/Black=0.88} 1-0

[Event "44th Chess Olympiad Women 2022"]
[Site "Chennai"]
[Date "2022.08.05"]
[Round "7.32"]
[White "Ferrufino, Michelle"]
[Black "Otazo Sanchez, Annyd Gabriela"]
[Result "0-1"]
[ECO "C42"]
[WhiteElo "1811"]
[BlackElo "1932"]
[Annotator "TA"]
[PlyCount "102"]
[EventDate "2022.07.29"]
[EventType "team-tourn"]
[EventCountry "IND"]
[SourceTitle "playchess.com"]
[Source "ChessBase"]
[SourceQuality "1"]
[WhiteTeam "Nicaragua"]
[BlackTeam "Venezuela"]
[WhiteTeamCountry "NCA"]
[BlackTeamCountry "VEN"]
[TimeControl "40/5400+30:1800+30"]

{[%evp 19,102,0,14,0,0,-34,-40,-58,-55,-178,-139,-331,-346,-318,-219,-277,-245,-430,-410,-553,-562,-550,-541,-537,-373,-353,-220,-245,-235,-240,-252,-241,-244,-231,-238,-229,-230,-276,-254,-266,-268,-308,-288,-452,-434,-29994,-359,-408,-367,-345,-338,-382,-393,-383,-377,-379,-366,-434,-443,-477,-433,-424,-393,-376,-362,-460,-455,-481,-435,-443,-429,-717,-700,-2070,-1186,-1077,-1052,-3220,-3630,-2842,-2389,-2076,-1954,-29982,-29983]} 1. e4 {[%emt 0:01:01] CB} e5 {[%emt 0:00:06]} 2. Nf3 {[%emt 0:00:28]} Nf6 {[%emt 0:00:06]} 3. Nxe5 {[%emt 0:00:23]} d6 {[%emt 0:00:05]} 4. Nf3 {[%emt 0:00:14]} Nxe4 {[%emt 0:00:05]} 5. Nc3 {[%emt 0:00:13]} Nxc3 {[%emt 0:00:11]} 6. dxc3 {[%emt 0:00:11]} Be7 {[%emt 0:00:04]} 7. Be3 {[%emt 0:00:21]} O-O {[%emt 0:00:10]} 8. Qd2 {[%emt 0:00:36]} Nd7 {[%emt 0:02:20]} 9. O-O-O {[%emt 0:00:40]} c6 {[%emt 0:01:11]} 10. Bd3 {[%emt 0:01:08]} d5 {[%emt 0:01:57]} 11. h4 {[%emt 0:01:50] C42: Petroff Defence: 3 Nxe5 and unusual White 3rd moves.} Nc5 {[%emt 0:05:16]} 12. Bxc5 {[%emt 0:02:16]} Bxc5 {[%emt 0:00:03] [#]} 13. Ng5 $146 {[%emt 0:02:08] Black is slightly better.} ({Predecessor:} 13. Rde1 Qf6 14. Nd4 Bd7 15. Re3 Rae8 16. Rf3 Qe5 17. Bf5 Bxf5 18. Nxf5 Re6 19. h5 {1-0 (76) Carlsen,M (2850)-Ivanchuk,V (2726) Berlin 2015 CBM 168 Extra [CB]}) 13... h6 {[%emt 0:10:32]} 14. Nh7 {[%emt 0:09:23]} (14. Kb1 $15) 14... Re8 $19 {[%emt 0:00:00]} 15. g4 $2 {[%emt 0:00:12]} (15. Ng5 $17 {was called for.}) 15... Bxg4 {[%emt 0:27:53]} 16. Rdg1 {[%emt 0:00:38]} h5 {[%emt 0:01:32] Active counter play!} 17. Ng5 {[%emt 0:08:02]} Qf6 {[%emt 0:02:44] Against Qf4} 18. Rg2 {[%emt 0:07:31]} (18. Kb1 {was worth a try.}) 18... Bd6 {[%emt 0:02:21] ...Bf4 is the strong threat. This bishop pair is nice.} 19. Kb1 {[%emt 0:07:43]} Bf4 {[%emt 0:00:49]} 20. Bh7+ {[%emt 0:00:12]} Kh8 {[%emt 0:07:24]} 21. Qd3 {[%emt 0:02:28]} Bxg5 {[%emt 0:03:51]} 22. hxg5 {[%emt 0:00:46]} Qe6 {[%emt 0:11:11][%cal Oe6e1] Strongly threatening ...Qe1+!} ({Stronger than} 22... Qxg5 23. f3 Qe3 24. Be4 (24. fxg4 $2 Qe1+ 25. Qd1 Qxd1+ 26. Rxd1 Kxh7 $19) 24... Qxd3 25. cxd3 $17) 23. b3 {[%emt 0:03:17]} Be2 {[%emt 0:05:23]} 24. Bf5 {[%emt 0:14:40]} Qe5 {[%emt 0:04:55]} ({Worse is} 24... Bxd3 25. Bxe6 Be4 26. Bxf7) 25. Qh3 {[%emt 0:06:05]} g6 {[%emt 0:00:45]} 26. Bg4 {[%emt 0:02:01]} Bxg4 {[%emt 0:00:42]} 27. Rxg4 {[%emt 0:06:38]} Kg7 {[%emt 0:00:12]} 28. Rg3 {[%emt 0:03:58]} a5 {[%emt 0:03:28] Threatens to win with ...a4.} 29. Qh4 {[%emt 0:02:39]} Qe4 {[%emt 0:01:21]} 30. Qh3 {[%emt 0:03:26]} Qe2 {[%emt 0:02:07]} 31. f4 {[%emt 0:05:21]} (31. Qf1 $142) 31... a4 {[%emt 0:00:52][%cal Oe2e1]} 32. b4 {[%emt 0:03:21] [#]} (32. c4 $19 dxc4 33. Qg2) 32... a3 $2 {[%emt 0:00:28]} (32... Qe1+ $3 {[%mdl 512] mates} 33. Kb2 a3+ 34. Kb3 {[#]} c5 $1 35. Qc8 Rexc8 36. b5 c4+ 37. Kb4 Qe7#) 33. Rd3 {[%emt 0:03:14] [#]} Qe1+ $3 {[%emt 0:01:05][%mdl 512]} 34. Rd1 {[%emt 0:00:09]} Qe3 {[%emt 0:00:10]} 35. Qxe3 {[%emt 0:00:41]} Rxe3 {[%emt 0:00:02][%mdl 4096] Endgame KRR-KRR} 36. f5 {[%emt 0:01:41]} Rxc3 {[%emt 0:02:46]} 37. f6+ {[%emt 0:01:10]} Kf8 {[%emt 0:00:45]} 38. Rde1 {[%emt 0:01:31]} Ra4 {[%emt 0:02:34]} 39. Re7 {[%emt 0:01:02]} Rxb4+ {[%emt 0:00:05]} 40. Kc1 {[%emt 0:00:06]} Re4 {[%emt 0:01:34]} 41. Rxb7 {[%emt 0:30:41]} Rg3 {[%emt 0:13:18] Inhibits Rg1.} 42. Rh4 {[%emt 0:00:00] Threatening mate with Rxe4.} Ke8 {[%emt 0:07:46]} ({Not} 42... Rg1+ $2 43. Kd2 Kg8 44. Rb8+ Kh7 45. Rxe4 dxe4 46. Rf8 Rxg5 47. Ke3 $19) 43. Rxe4+ {[%emt 0:00:00]} dxe4 {[%emt 0:00:07] KR-KR} 44. Re7+ {[%emt 0:00:00]} Kf8 {[%emt 0:04:22]} 45. Rc7 {[%emt 0:00:00]} (45. Rxe4 $142 Rxg5 46. Ra4) 45... Kg8 {[%emt 0:01:52] And now ...h4 would win.} 46. Rxc6 {[%emt 0:00:00]} Rxg5 {[%emt 0:00:06]} 47. Rc8+ {[%emt 0:00:00]} Kh7 {[%emt 0:00:04]} 48. Rc7 {[%emt 0:00:00]} h4 {[%emt 0:00:21][%cal Bh5h4,Bh4h3][%mdl 32]} 49. Rxf7+ {[%emt 0:00:00]} Kg8 {[%emt 0:00:08]} 50. Rg7+ {[%emt 0:00:00]} Kf8 {[%emt 0:00:06] ( -> ...h3)} 51. Kd2 {[%emt 0:00:33]} h3 {[%emt 0:00:10] White got outplayed after the opening.  Weighted Error Value: White=0.99/Black=0.34} 0-1

[Event "44th Chess Olympiad Women 2022"]
[Site "Chennai"]
[Date "2022.08.05"]
[Round "7.33"]
[White "Zairbek kyzy, Begimai"]
[Black "Pipiras, Filipa Fortuna"]
[Result "0-1"]
[ECO "B22"]
[WhiteElo "1949"]
[BlackElo "2139"]
[Annotator "TA"]
[PlyCount "74"]
[EventDate "2022.07.29"]
[EventType "team-tourn"]
[EventCountry "IND"]
[SourceTitle "playchess.com"]
[Source "ChessBase"]
[SourceQuality "1"]
[WhiteTeam "Kyrgyzstan"]
[BlackTeam "Portugal"]
[WhiteTeamCountry "KGZ"]
[BlackTeamCountry "POR"]
[TimeControl "40/5400+30:1800+30"]

{[%evp 16,74,0,0,0,-11,0,-1,-8,0,0,0,-4,0,-4,-30,-27,-26,-32,-28,-27,-28,-20,-31,-17,-20,-19,-44,-45,-40,-25,-97,-94,-116,-129,-135,-140,-192,-190,-215,-152,-225,-192,-249,-220,-346,-346,-464,-433,-488,-454,-563,-551,-860,-856,-1141,-1117,-1089,-1081,-1032,-983]} 1. e4 {[%emt 0:00:02][%cal Be2e4,Be4e5][%mdl 32]} c5 {[%emt 0:04:07]} 2. c3 {[%emt 0:00:05]} Nf6 {[%emt 0:00:48][%cal Bg8f6,Bf6d5,Bd5b4][%mdl 32]} 3. e5 {[%emt 0:00:05]} Nd5 {[%emt 0:00:29]} 4. d4 {[%emt 0:00:05]} cxd4 {[%emt 0:00:33]} 5. Nf3 {[%emt 0:00:03]} Nc6 {[%emt 0:00:56]} 6. cxd4 {[%emt 0:00:20]} d6 {[%emt 0:01:46]} 7. Bc4 {[%emt 0:00:23]} dxe5 {[%emt 0:02:09]} 8. dxe5 {[%emt 0:03:30]} Ndb4 {[%emt 0:05:45]} 9. Qb3 {[%emt 0:04:43]} e6 {[%emt 0:00:00] B22: Sicilian: 2 c3.} 10. O-O {[%emt 0:03:37]} Na5 $1 {[%emt 0:00:00]} 11. Bb5+ {[%emt 0:04:58]} Bd7 {[%emt 0:02:36] The position is equal.} 12. Qa4 {[%emt 0:02:34]} Bxb5 {[%emt 0:04:06]} 13. Qxb5+ {[%emt 0:00:09]} Nac6 {[%emt 0:00:15] aiming for ...Nc2.} 14. Nc3 {[%emt 0:04:55]} (14. Qxb7 $2 Rb8 15. Bg5 Qa5 16. Qxb8+ Nxb8 $19) 14... a6 {[%emt 0:02:40]} 15. Qe2 {[%emt 0:00:30]} ({Don't go for} 15. Qxb7 $2 Rb8 16. Bg5 Qa5 17. Qxb8+ Nxb8 $19) 15... Qd3 {[%emt 0:05:13]} 16. Rd1 {[%emt 0:05:59]} Qxe2 {[%emt 0:02:13]} 17. Nxe2 {[%emt 0:01:10]} Bc5 {[%emt 0:07:20][%cal Bf8c5,Bc5a7,Ba7d4,Bd4e5][%mdl 32]} 18. a3 {[%emt 0:05:11]} Nd5 {[%emt 0:02:01]} 19. Nf4 {[%emt 0:02:20] [#]} Nce7 $146 {[%emt 0:11:42]} ({Predecessor:} 19... Nb6 20. Nd3 Rd8 21. Bg5 Be7 22. Bxe7 Kxe7 23. Nc5 Rxd1+ 24. Rxd1 Rb8 25. b3 Nd5 {0-1 (52) Comsa,C (1835)-Bok,B (2640) Columbia 2019}) 20. Nxd5 {[%emt 0:01:02]} Nxd5 {[%emt 0:00:31]} 21. Nd2 {[%emt 0:02:47]} O-O {[%emt 0:04:46]} 22. Ne4 {[%emt 0:03:30]} Ba7 {[%emt 0:00:34]} 23. Bd2 {[%emt 0:07:50]} (23. b3 $11) 23... Bd4 $17 {[%emt 0:07:38][%csl LRb2,LRe5]} 24. Bc3 {[%emt 0:06:29]} Nxc3 {[%emt 0:03:33]} 25. bxc3 {[%emt 0:01:25]} Bxe5 {[%emt 0:00:25]} 26. Rd7 {[%emt 0:01:09] [#]} (26. a4 $17) 26... b5 $1 $19 {[%emt 0:06:55]} ({Inferior is} 26... f5 27. Nc5 $17) 27. Rad1 {[%emt 0:00:24]} Rfc8 {[%emt 0:01:09]} 28. g3 {[%emt 0:01:13] [#]} (28. Nd6 $17 {was called for.} Rf8 29. Rd3) 28... h6 $1 {[%emt 0:01:31]} ({Much less strong is} 28... Bxc3 29. Nxc3 Rab8 30. Ne4 $18) 29. f4 {[%emt 0:09:26]} (29. Kg2 $142) 29... Bxc3 {[%emt 0:01:04]} 30. Rb7 {[%emt 0:00:42]} (30. Nd6 {was necessary.} Rf8 31. Rd3) 30... Bb2 {[%emt 0:02:55]} 31. Rdd7 {[%emt 0:00:55]} Bxa3 {[%emt 0:00:27] Black is clearly winning.} 32. Rxf7 {[%emt 0:01:21]} Bf8 {[%emt 0:00:28]} 33. Kg2 {[%emt 0:10:06]} a5 {[%emt 0:01:09][%cal Ba6a5,Ba5a4,Ba4a3,Ba3a2][%mdl 32]} 34. g4 {[%emt 0:02:35]} a4 {[%emt 0:01:08] White must now prevent ...a3.} 35. Nd6 {[%emt 0:06:03]} Rc2+ {[%emt 0:03:12]} 36. Kf3 {[%emt 0:00:10]} a3 {[%emt 0:00:14] Strongly threatening ...a2.} 37. Nxb5 {[%emt 0:01:02]} a2 {[%emt 0:00:10] Weighted Error Value: White=0.52/Black=0.04 (flawless)} 0-1